Cogmind - Beta 17 @@@ ROGUE MODE // 2026.08.18 @ 15:22:10 Player: DietSnapple Result: Destroyed by Y-45 Defender with Heavy Assault Rifle Performance ------------- Evolutions (0) 0 Regions Visited (3) 600 Robots Destroyed (29) 145 Value Destroyed (594) 594 Prototype IDs (0) 0 Alien Tech Used (0) 0 Bonus (0) 0 TOTAL SCORE: 1339 Bonus ------- None Cogmind --------- Core Integrity 0/250 Matter 284/300 Energy 200/200 System Corruption 2% Temperature Cool (9) Movement Rolling (95) Ox1 Location -9/Recycling Parts ------- > --- POWER (1) -------- Subdweller Power Source > --- PROPULSION (2) --- Wheel Wheel > --- UTILITY (2) ------ Large Storage Unit > --- WEAPON (2) ------- Hammer > --- INVENTORY (15) --- Light Treads Small Storage Unit Structural Scanner Visual Processing Unit Sensor Array Signal Interpreter Scrap Shield Peak State ------------ > --- POWER ------------ Light Ion Engine > --- PROPULSION ------- Wheel Wheel > --- UTILITY ---------- Large Storage Unit Seismic Detector > --- WEAPON ----------- Medium Laser Barrage Gun > --- INVENTORY -------- Light Treads Light Treads Small Storage Unit Structural Scanner Visual Processing Unit Sensor Array Signal Interpreter Scrap Shield Hammer [Rating: 10] Favorites ----------- Power Light Ion Engine Engine Light Ion Engine Propulsion Light Treads Treads Light Treads Wheel Wheel Utility Seismic Detector Device Seismic Detector Storage Large Storage Unit Weapon Medium Laser Energy Gun Medium Laser Ballistic Gun Assault Rifle Impact Weapon Hammer Build | -11 -10 -10 -9 ------- Run | Yrd Mat Sub Rec Slots Evolved . | . . . . Power . | . . . . Propulsion . | . . . . Utility . | . . . . Weapon . | . . . . Parts Attached 16 | 7 3 6 . Power 3 | 1 1 1 . Engine 3 | 1 1 1 . Core . | . . . . Reactor . | . . . . Propulsion 5 | 2 . 3 . Treads 3 | 2 . 1 . Leg . | . . . . Wheel 2 | . . 2 . Hover . | . . . . Flight . | . . . . Utility 3 | 2 1 . . Device 1 | 1 . . . Storage 2 | 1 1 . . Processor . | . . . . Hackware . | . . . . Protection . | . . . . Artifact . | . . . . Weapon 5 | 2 1 2 . Energy Gun 2 | 1 1 . . Energy Cannon . | . . . . Ballistic Gun 2 | 1 . 1 . Ballistic Cannon . | . . . . Launcher . | . . . . Special Weapon . | . . . . Impact Weapon 1 | . . 1 . Slashing Weapon . | . . . . Piercing Weapon . | . . . . Special Melee Weapon . | . . . . Unidentified Prototypes . | . . . . Parts Lost 9 | . 2 7 . Power 2 | . 1 1 . Propulsion 2 | . . 2 . Utility 1 | . . 1 . Weapon 4 | . 1 3 . Highest Loss Streak 5 | . 1 5 . To Critical Strikes . | . . . . Average Backups 7 | 2 7 8 7 Power . | . . . . Propulsion 2 | 1 2 2 1 Utility 3 | . 3 5 6 Weapon 1 | . 1 1 . Tool/Special . | . . . . Unused Backups 5 | . . . 5 Power . | . . . . Propulsion . | . . . . Utility 5 | . . . 5 Weapon . | . . . . Tool/Special . | . . . . Average Slot Usage (%) 94 | . 96 92 71 Engine 11 | . 11 13 14 Treads 20 | . 28 9 . Wheel 5 | . . 14 28 Device 13 | . 14 12 . Storage 14 | . 14 14 14 Energy Gun 13 | . 14 13 . Ballistic Gun 13 | . 14 13 . Peak Build Rating 10 | 7 8 10 7 Average Rating 7 | 5 7 7 7 On Entrance 5 | . 7 8 7 Avg Prop Armor Cover (%) . | . . . . Naked Turns . | . . . . Heaviest Build 29 | 13 28 29 27 Greatest Support 40 | 40 40 40 20 Greatest Overweight (x) 1 | . . 1 1 Average Overweight (x) . | . . . 1 Largest Inventory Capacity 15 | 8 15 15 15 Average Capacity 13 | 7 14 15 15 Most Carried 10 | 3 10 10 8 Average Carried 7 | 2 7 8 8 Final Capacity 15 | 8 15 15 15 Final Carried 9 | 3 9 8 8 Class Distribution -------------------- 100% | Mutant Dominant Class ---------------- Mutant | -10/Materials Mutant | -10/Subcaves Mutant | -9/Recycling Resources | -11 -10 -10 -9 ----------- Run | Yrd Mat Sub Rec Matter Collected 597 | 315 158 124 . Remotely . | . . . . Salvage Created 959 | 184 530 189 56 Parts 60 | 17 34 7 2 Haulers Intercepted 2 | . 2 . . Recyclers Shooed 2 | 1 1 . . Parts Field Recycled . | . . . . Retrieved Matter . | . . . . Parts Self-Destructed 8 | . . 8 . Prevented . | . . . . Parts Restored . | . . . . Kills | -11 -10 -10 -9 ------- Run | Yrd Mat Sub Rec Combat Hostiles Destroyed 14 | . 10 3 1 Guns 13 | . 10 3 . Classes Destroyed 11 | 3 5 2 1 Worker 2 | 2 . . . Builder 1 | . 1 . . Tunneler 5 | 5 . . . Hauler 2 | . 2 . . Recycler 2 | 1 1 . . Turret 2 | . . 2 . Watcher 1 | . 1 . . Swarmer 3 | . 3 . . Grunt 9 | . 7 2 . Sentry 1 | . . . 1 Subdweller 1 | . . 1 . Best Kill Streak 3 | 3 3 2 1 Combat Bots Only 3 | . 3 2 1 Max Kills in Single Turn 1 | 1 1 1 1 Gunslinging . | . . . . Exploded . | . . . . Melee . | . . . . Uniques/NPCs Destroyed . | . . . . Combat | -11 -10 -10 -9 -------- Run | Yrd Mat Sub Rec Hostile Shots Fired 172 | . 70 100 2 Missed 57 | . 20 37 . Hits 115 | . 50 63 2 Projectile 115 | . 50 63 2 Critical Strikes 3 | . 1 2 . Damage Taken 1175 | . 552 591 32 Core 260 | . 64 164 32 Absorbed by Shields . | . . . . Core Remaining (%) 100 | 100 . . . Volleys Fired 80 | 15 46 19 . Largest 2 | 2 2 2 . Hottest 78 | 70 70 78 . Shots Fired 159 | 30 92 37 . Gun 159 | 30 92 37 . Cannon . | . . . . Launcher . | . . . . Special . | . . . . Kinetic 79 | 15 46 18 . Thermal 80 | 15 46 19 . Explosive . | . . . . Electromagnetic . | . . . . Robot Hit Streak 12 | 10 12 5 . Robot Miss Streak 4 | 2 4 2 . Penetration Max . | . . . . Secondary Targets 2 | . 1 1 . Max Gunslinging Chain 1 | . 1 1 . Shots Hit Robots 108 | 20 60 27 1 Core Hits 44 | 9 27 8 . Critical Kills . | . . . . Critical Parts Destroyed 3 | . 1 1 1 Critical Strikes 9 | . 3 5 1 Burn 6 | . 2 4 . Destroy 1 | . 1 . . Smash 2 | . . 1 1 Melee Attacks 3 | . . 2 1 Impact 3 | . . 2 1 Slashing . | . . . . Piercing . | . . . . Sneak Attacks 1 | . . . 1 Combat Hostiles . | . . . . Follow-up Attacks . | . . . . Damage Inflicted 1524 | 262 775 445 42 Guns 1404 | 262 767 375 . Cannons . | . . . . Explosions . | . . . . Melee 112 | . . 70 42 Ramming 8 | . 8 . . Kinetic 697 | 122 365 210 . Thermal 707 | 140 402 165 . Explosive . | . . . . Electromagnetic . | . . . . Impact 112 | . . 70 42 Slashing . | . . . . Piercing . | . . . . Highest Corruption 2 | . 2 2 2 Average Corruption 2 | . 2 2 2 Corruption Purged . | . . . . Corruption Blocked . | . . . . Effects 6 | . 2 3 1 Message Errors 1 | . 1 . . Matter Fused 2 | . . 1 1 Heat Flow Errors 1 | . . 1 . Energy Discharges 1 | . 1 . . Alerts 1 | . . 1 . Overload Shots . | . . . . Overflow Damage 80 | . . 38 42 Projectiles . | . . . . Explosions . | . . . . Melee 80 | . . 38 42 Knockbacks . | . . . . Impact . | . . . . Kinetic . | . . . . Secondary . | . . . . Self-Inflicted Damage . | . . . . Shots . | . . . . Rammed . | . . . . Targets Rammed 1 | . 1 . . Kicked . | . . . . Crushed 1 | . 1 . . Highest Temperature 204 | 47 204 63 . Average Temperature 35 | 16 50 13 . Received Heat Transfer 660 | . 234 417 9 Effects 1 | . 1 . . Energy Bleed 1 | . 1 . . Siege Activations . | . . . . Martial Activations . | . . . . Shielding Activations . | . . . . Robots Disrupted . | . . . . Combat Hostiles . | . . . . Robots Corrupted 1 | . . . 1 Combat Hostiles 1 | . . . 1 Parts Fried 1 | . . . 1 Impact Corruptions 2 | . . 1 1 Robots Melted . | . . . . Combat Hostiles . | . . . . Parts Melted 1 | . . 1 . Heat Transferred 2516 | 407 1332 777 . Parts Sabotaged . | . . . . Parts Stolen . | . . . . Parts Stripped . | . . . . Power Chain Reactions . | . . . . Alert | -11 -10 -10 -9 ------- Run | Yrd Mat Sub Rec Maximum Alert Level . | . . . . Low Security (%) 100 | 100 100 . 100 Level 1 . | . . . . Level 2 . | . . . . Level 3 . | . . . . Level 4 . | . . . . Level 5 . | . . . . High Security . | . . . . Max Security . | . . . . Peak Influence 70 | 10 70 . 45 Initial 25 | . . . 25 Average 15 | 1 19 . 38 Influence Increases 535 | 40 325 150 20 Destroy 0b10 Robot/C 300 | . 200 80 20 Destroy 0b10 Robot/NC 65 | 40 25 . . Destroy Leader 66 | . 56 10 . Successful Hack 13 | . 13 . . Destroy Structure 1 | . 1 . . Lose Combat Pursuer 90 | . 30 60 . Influence Decreases 490 | 40 309 112 29 Entered New Map 37 | . . 8 29 Time Decay 416 | 40 302 74 . Lost Part 37 | . 7 30 . Squads Dispatched 2 | . 2 . . Investigation 1 | . 1 . . Extermination . | . . . . Reinforcement 1 | . 1 . . Assault . | . . . . Garrison . | . . . . Intercept . | . . . . Searches Triggered . | . . . . Construction Impeded . | . . . . Haulers Reinforced . | . . . . Active Scanning Responses . | . . . . Cargo Convoy Interrupts . | . . . . Stealth | -11 -10 -10 -9 --------- Run | Yrd Mat Sub Rec Distress Signals . | . . . . Communications Jammed . | . . . . Distress Signals . | . . . . Times Spotted 32 | . 21 9 2 Peak Tracking Total 3 | . 3 2 2 Tactical Retreats 4 | . 2 2 . Traps | -11 -10 -10 -9 ------- Run | Yrd Mat Sub Rec Traps Triggered 2 | . 1 1 . Indirectly . | . . . . Trap Hack Attempts . | . . . . Triggered . | . . . . Disarmed . | . . . . Reprogrammed . | . . . . Reused . | . . . . Traps Extracted . | . . . . Installed . | . . . . Triggered . | . . . . Machines | -11 -10 -10 -9 ---------- Run | Yrd Mat Sub Rec Machines Disabled 1 | . . 1 . Max in Single Turn 1 | . . 1 . Machines Repaired . | . . . . Machines Dismantled . | . . . . Machines Sabotaged . | . . . . Overloaded Fab Kills . | . . . . Hacking | -11 -10 -10 -9 --------- Run | Yrd Mat Sub Rec Machines Accessed 2 | . 2 . . Terminals 2 | . 2 . . Fabricators . | . . . . Repair Stations . | . . . . Recycling Units . | . . . . Scanalyzers . | . . . . Garrison Access . | . . . . Total Hacks 7 | . 7 . . Successful 5 | . 5 . . Failed 2 | . 2 . . Catastrophic . | . . . . Database Lockouts . | . . . . Manual 3 | . 3 . . Terminals 7 | . 7 . . Fabricators . | . . . . Repair Stations . | . . . . Recycling Units . | . . . . Scanalyzers . | . . . . Garrison Access . | . . . . Terminal Hacks 2 | . 2 . . Locate Traps 2 | . 2 . . Fabricator Hacks . | . . . . Repair Station Hacks . | . . . . Recycling Unit Hacks . | . . . . Scanalyzer . | . . . . Garrison Access Hacks . | . . . . Unauthorized Hacks 3 | . 3 . . Terminals 3 | . 3 . . Botnet 2 | . 2 . . Skim 1 | . 1 . . Fabricators . | . . . . Repair Stations . | . . . . Recycling Units . | . . . . Scanalyzers . | . . . . Garrison Access . | . . . . Data Cores Recovered . | . . . . Used . | . . . . Hacking Detections 1 | . 1 . . Full Trace Events 1 | . 1 . . Feedback Events . | . . . . Feedback Blocked . | . . . . Robot Schematics Acquired . | . . . . Robots Built . | . . . . Authchips . | . . . . Time . | . . . . Total Robot Build Rating . | . . . . Part Schematics Acquired . | . . . . Parts Built . | . . . . Authchips . | . . . . Time . | . . . . Total Part Build Rating . | . . . . Part Studies Acquired . | . . . . Parts Repaired . | . . . . Time . | . . . . Parts Recycled . | . . . . Recycled Matter . | . . . . Retrieved Matter . | . . . . Retrieved Components . | . . . . Parts Scanalyzed . | . . . . Part Schematics Acquired . | . . . . Parts Damaged . | . . . . Bothacking | -11 -10 -10 -9 ------------ Run | Yrd Mat Sub Rec Used RIF Installer . | . . . . Robots Hacked . | . . . . Non-combat . | . . . . Combat . | . . . . Robot Hacks Applied . | . . . . Relay Couplers Released . | . . . . Fabnet Peak Effective % . | . . . . Robots Rewired . | . . . . Allies Hacked . | . . . . Hacks Repelled . | . . . . Allies | -11 -10 -10 -9 -------- Run | Yrd Mat Sub Rec Total Allies . | . . . . Largest Group . | . . . . Highest-Rated Group . | . . . . Highest-Rated Ally . | . . . . Total Orders . | . . . . Ally Attacks . | . . . . Total Damage . | . . . . Kills . | . . . . Allies Corrupted . | . . . . Allies Melted . | . . . . Intel | -11 -10 -10 -9 ------- Run | Yrd Mat Sub Rec Active Infowar (turns) 1780 | 35 1086 659 . Seismic 1780 | 35 1086 659 . Robot Analysis Total . | . . . . Derelict Logs Recovered 1 | . . 1 . Drone Launches . | . . . . Drone Recoveries . | . . . . Exploration | -11 -10 -10 -9 ------------- Run | Yrd Mat Sub Rec Turns Passed 2056 | 251 1086 716 3 Spaces Moved 1088 | 125 481 481 1 Core 6 | 6 . . . Treads 751 | 119 481 151 . Legs . | . . . . Wheels 331 | . . 330 1 Hover . | . . . . Flight . | . . . . Fastest Speed 50 | 50 160 95 95 Average Speed 145 | 154 160 129 95 Slowest Speed 240 | 160 160 240 95 Overloaded Moves . | . . . . Propulsion Burnouts . | . . . . Robots Hopped . | . . . . Potential Cave-ins . | . . . . Cave-ins Triggered . | . . . . Exploration Rate (%) 29 | 5 76 33 2 Regions Visited 3 Branch Regions 2 Pre-discovered Areas . | . . . . Known Exits Taken . | . . . . Unknown Exits Taken 3 | 1 1 1 . Scrap Searched 3 | . . 3 . Spaces Dug . | . . . . Terrain Destroyed . | . . . . Melee . | . . . . Projectile . | . . . . AOE . | . . . . Terrain Rammed . | . . . . Walls Destroyed . | . . . . Machines Disabled . | . . . . Actions | -11 -10 -10 -9 --------- Run | Yrd Mat Sub Rec Total 1389 | 149 704 534 2 Wait 189 | . 168 21 . Move 1085 | 124 480 480 1 Hop . | . . . . Pick Up 11 | 3 6 2 . Fast Attach 9 | 7 1 1 . Attach 6 | . 1 5 . Detach 1 | . . 1 . Swap 4 | . 1 3 . Drop . | . . . . Fire 80 | 15 46 19 . Melee 3 | . . 2 1 Ram . | . . . . Kick . | . . . . Crush 1 | . 1 . . Escape Stasis . | . . . . Rewire . | . . . . Trap . | . . . . Miscellaneous . | . . . . Route ------- -11/Scrapyard -10/Materials (discovered 6 exits: [*Mat x3] / [*Min x2] / [*Sub]) -10/Subcaves (discovered 2 exits: [*Mat] / [*Rec]) -9/Recycling History --------- Turn | Location | Event 3 | -11/Scrapyard | Discovered new exit (range 16) 252 | -11/Scrapyard | Entered Materials 310 | -10/Materials | Build established: Mutant 471 | -10/Materials | Discovered new exit (range 8) 581 | -10/Materials | Discovered new exit (range 7) 698 | -10/Materials | Discovered new exit (range 5) 804 | -10/Materials | Discovered new exit (range 15) 1189 | -10/Materials | Discovered new exit (range 13) 1318 | -10/Materials | Discovered new exit (range 9) 1338 | -10/Materials | Entered Subcaves 1397 | -10/Subcaves | Shifting Twisted Machinery released Sub. Laser 1480 | -10/Subcaves | Shifting Twisted Machinery released Flamer 1510 | -10/Subcaves | Shifting Twisted Machinery released Battle Cannon 1517 | -10/Subcaves | A swath of the cavern ceiling suddenly collapsed 1712 | -10/Subcaves | Learned 2 Materials zone layouts 1853 | -10/Subcaves | Core integrity fell below 50% 1906 | -10/Subcaves | Discovered new exit (range 8) 1977 | -10/Subcaves | Discovered new exit (range 12) 2012 | -10/Subcaves | Core integrity fell below 20% 2036 | -10/Subcaves | Lost 5 parts (1p1n1u2w) 2054 | -10/Subcaves | Entered Recycling 2057 | -9/Recycling | Destroyed by Y-45 Defender with Heavy Assault Rifle Last Messages --------------- 02017_ Autobeam Turret system corrupted by crushing effect. 02017_ Autobeam Turret destroyed. 02018_ Acquired 20 matter. 02021_ Autobeam Turret destroyed. 02026_ Acquired 24 matter. 02031_ Subatomizers dissect the Disposable Heat Sink. 02035_ Acquired 1 matter. 02040_ Acquired Sub. Power Source. LOCATION=UNKNOWN GOAL=ESCAPE 02055_ Sneak attack on Y-45 Defender. 02055_ Y-45 Defender suffers critical hit (Smash). 02055_ Destroyed Beam Rifle. 02055_ Y-45 Defender system corrupted by crushing effect. 02055_ Y-45 Defender springs to life. 02055_ Y-45 Defender misfires. 02056_ System corrupted: Matter fused (-6). 02056_ Y-45 Defender system terminally corrupted. 02056_ Imp. Ion Engine fried. 02056_ Y-45 Defender springs to life. Map ----- +----------------------------------------------------+ | ??????????????????????????????????? | | ??????????????????????????????????? | | ??????????????????????????????????? | | ??????????????????????????????????? | | ??????????????????????????????????? | | ??????????????????????????????????? | | ??????????????????????????????????? | | ??????????????????????????????????? | | ??????????????????????????????????? | | ??????????????????????????????????? | | ??????????????????????????????????? | | ??????????????????????????????????? | | ??????????????????????????????????? | | ??????????????????????????????????? | | ??????????????????????????????????? | | ??????????????????????????????????? | | ??????????????????????????????????? | | ??????????????????????????????????? | | ??????????????????????????????????? | | ??????????????????????????????????? | | ??????????????????????????????????? | | ??????????????????????????????????? | | ??????????????????????????????????? | | ???????#####??????????????????????? | | ???????# ##?????????????????????? | | ???????# @%#?????????????????????? | | ???????# =##?????????????????????? | | ???????# Y#??????????????????????? | | ??????** ??????????????????????? | | ?????#* ##?????????????????????? | | ?????#** #??????????????????????? | | ?????### ??????????????????????? | | ???????# #??????????????????????? | | ???????# #??????????????????????? | | ???????# #??????????????????????? | | ???????# #??????????????????????? | | ???????# #??????????????????????? | | ???????# #??????????????????????? | | ???????# ???????????????????????? | | ???????# ???????????????????????? | | ???????? ???????????????????????? | | ??????????????????????????????????? | | ??????????????????????????????????? | | ??????????????????????????????????? | | ??????????????????????????????????? | | ??????????????????????????????????? | | ??????????????????????????????????? | | ??????????????????????????????????? | | ??????????????????????????????????? | | ??????????????????????????????????? | +----------------------------------------------------+ Best States ------------- Heat Dissipation 25 Energy Generation 15 Energy Capacity 200 Matter Stores 300 Matter Capacity 300 Sight Range 16 Terrain Scan Density 10 Evasion (%) 41 Recoil Reduction 2 Item Schematics ----------------- None Robot Schematics ------------------ None Fabricated ------------ Nothing Repaired ---------- Nothing Studied --------- None Alien Tech Used ----------------- None Achievements -------------- None Challenges ------------ None Game ------ Seed PiercelightBottomlessBiocell Manual? 0 Play Time 00:12:08 Cumulative 62.7 hours Start 2026.08.18 @ 14:52:03 End 2026.08.18 @ 15:22:10 Sessions 1 Manual Loads 0 Difficulty Rogue Special Mode None Game No. 131 Rogue 124 Adventurer 7 Explorer 0 Win Type - Total 1 Types 1/0/0/0/0/0/0/0/0/0 Lore% 34 Gallery% 40 Achievement% 31 Wizard Run 0 Options --------- Layout 1 ASCII 0 Keyboard 1 Movement Vi Keybinds 0 Fullscreen 1 Font 24/Smallcaps Map View 76x35 Zoom Use 0% Tactical HUD 1 Map Filters NONE Filters NONE Steam 1 RUN: 8f06350e-50a3-488b-bee8-fa2e9023bb35